[Event "*** Titled Tuesday Blitz"]
[Site "Chess.com"]
[Date "2020.05.19"]
[Round "2"]
[White "Nastya_Rakhmangulova"]
[Black "AnonymousBread"]
[Result "0-1"]
[WhiteElo "2310"]
[BlackElo "2593"]
[TimeControl "180+1"]
[EndTime "12:14:55 PDT"]
[Termination "AnonymousBread won by resignation"]

1. e4 {[%clk 0:03:00.9]} 1... e5 {[%clk 0:03:00.2]} 2. Nf3 {[%clk 0:03:01.1]}
2... Nc6 {[%clk 0:03:00.9]} 3. c3 {[%clk 0:03:01.6]} 3... Nf6 {[%clk 0:02:57.9]}
4. d4 {[%clk 0:02:59.9]} 4... exd4 {[%clk 0:02:52.2]} 5. e5 {[%clk 0:02:59.6]}
5... Nd5 {[%clk 0:02:44.2]} 6. cxd4 {[%clk 0:02:59.1]} 6... Bb4+ {[%clk
0:02:43.1]} 7. Bd2 {[%clk 0:02:59.5]} 7... Bxd2+ {[%clk 0:02:43.1]} 8. Qxd2
{[%clk 0:03:00.4]} 8... O-O {[%clk 0:02:43.1]} 9. Nc3 {[%clk 0:02:55.1]} 9...
Nxc3 {[%clk 0:02:43.2]} 10. Qxc3 {[%clk 0:02:56]} 10... d6 {[%clk 0:02:44]} 11.
Be2 {[%clk 0:02:54.9]} 11... Re8 {[%clk 0:02:29.3]} 12. O-O {[%clk 0:02:54.6]}
12... Bg4 {[%clk 0:02:29.8]} 13. Rfe1 {[%clk 0:02:54.2]} 13... dxe5 {[%clk
0:02:14.1]} 14. dxe5 {[%clk 0:02:45.5]} 14... Qe7 {[%clk 0:02:13.2]} 15. h3
{[%clk 0:02:14.3]} 15... Bh5 {[%clk 0:02:08.3]} 16. Bb5 {[%clk 0:01:49.1]} 16...
Bxf3 {[%clk 0:02:01.1]} 17. Qxf3 {[%clk 0:01:50]} 17... Nxe5 {[%clk 0:01:54]}
18. Rxe5 {[%clk 0:01:49]} 18... Qxe5 {[%clk 0:01:54.9]} 19. Bxe8 {[%clk
0:01:49.4]} 19... Rxe8 {[%clk 0:01:50]} 20. Qxb7 {[%clk 0:01:49.4]} 20... g6
{[%clk 0:01:47.9]} 21. Rc1 {[%clk 0:01:36.9]} 21... Qf4 {[%clk 0:01:47.9]} 22.
Qxc7 {[%clk 0:01:34.3]} 22... Re1+ {[%clk 0:01:47.6]} 0-1

[Event "*** Titled Tuesday Blitz"]
[Site "Chess.com"]
[Date "2020.05.19"]
[Round "2"]
[White "ChessMavenYeti"]
[Black "2007checkmate"]
[Result "0-1"]
[WhiteElo "2077"]
[BlackElo "2395"]
[TimeControl "180+1"]
[EndTime "12:15:11 PDT"]
[Termination "2007checkmate won by checkmate"]

1. d4 {[%clk 0:02:32.1]} 1... d5 {[%clk 0:02:59.6]} 2. c4 {[%clk 0:02:30.3]}
2... dxc4 {[%clk 0:03:00.5]} 3. e3 {[%clk 0:02:29.6]} 3... c5 {[%clk 0:03:00.1]}
4. Nf3 {[%clk 0:02:29.3]} 4... cxd4 {[%clk 0:02:59.8]} 5. exd4 {[%clk
0:02:29.3]} 5... Nf6 {[%clk 0:02:59.6]} 6. Bxc4 {[%clk 0:02:29.6]} 6... e6
{[%clk 0:03:00.2]} 7. O-O {[%clk 0:02:29]} 7... Be7 {[%clk 0:03:00.7]} 8. Nc3
{[%clk 0:02:29.3]} 8... O-O {[%clk 0:03:00.9]} 9. Bb3 {[%clk 0:02:29.5]} 9... a6
{[%clk 0:03:01.2]} 10. Qe2 {[%clk 0:02:27.1]} 10... b5 {[%clk 0:03:01.1]} 11.
Rd1 {[%clk 0:02:27.3]} 11... Bb7 {[%clk 0:03:00.9]} 12. Ne5 {[%clk 0:02:21.8]}
12... Nbd7 {[%clk 0:02:59.7]} 13. Bf4 {[%clk 0:02:17]} 13... Nb6 {[%clk
0:02:57.8]} 14. Rac1 {[%clk 0:02:14.7]} 14... Nbd5 {[%clk 0:02:54.3]} 15. Nxd5
{[%clk 0:02:08.7]} 15... Nxd5 {[%clk 0:02:52.3]} 16. Bg3 {[%clk 0:02:08.1]}
16... Rc8 {[%clk 0:02:51.1]} 17. f4 {[%clk 0:02:03]} 17... Rxc1 {[%clk
0:02:30.6]} 18. Rxc1 {[%clk 0:01:59.6]} 18... Qb6 {[%clk 0:02:30.9]} 19. Qf2
{[%clk 0:01:51.6]} 19... Rd8 {[%clk 0:02:27.5]} 20. f5 {[%clk 0:01:41.6]} 20...
exf5 {[%clk 0:02:25.7]} 21. Qxf5 {[%clk 0:01:41.5]} 21... Qxd4+ {[%clk
0:02:18.7]} 22. Bf2 {[%clk 0:01:39.8]} 22... Qf4 {[%clk 0:02:14.8]} 23. Qxf4
{[%clk 0:01:39.4]} 23... Nxf4 {[%clk 0:02:15]} 24. Bxf7+ {[%clk 0:01:29.8]}
24... Kf8 {[%clk 0:02:12.2]} 25. Re1 {[%clk 0:01:24.6]} 25... Nxg2 {[%clk
0:02:04.7]} 26. Rf1 {[%clk 0:01:15.4]} 26... Nf4 {[%clk 0:01:59.9]} 27. Be3
{[%clk 0:01:06.7]} 27... Nh3# {[%clk 0:01:59.4]} 0-1

[Event "*** Titled Tuesday Blitz"]
[Site "Chess.com"]
[Date "2020.05.19"]
[Round "2"]
[White "hypert"]
[Black "FMalexhdez"]
[Result "1-0"]
[WhiteElo "2382"]
[BlackElo "2053"]
[TimeControl "180+1"]
[EndTime "12:15:16 PDT"]
[Termination "hypert won by resignation"]

1. e4 {[%clk 0:03:00.9]} 1... c5 {[%clk 0:02:59.3]} 2. Nf3 {[%clk 0:03:01.2]}
2... d6 {[%clk 0:02:59.4]} 3. d4 {[%clk 0:03:01.7]} 3... cxd4 {[%clk 0:02:59.7]}
4. Nxd4 {[%clk 0:03:02.6]} 4... Nf6 {[%clk 0:02:59.7]} 5. Nc3 {[%clk 0:03:03.1]}
5... a6 {[%clk 0:02:59.9]} 6. Qf3 {[%clk 0:03:03.7]} 6... e6 {[%clk 0:02:44.7]}
7. g4 {[%clk 0:03:03]} 7... Nbd7 {[%clk 0:02:41.5]} 8. g5 {[%clk 0:03:02]} 8...
Ne5 {[%clk 0:02:41.2]} 9. Qe2 {[%clk 0:03:00.1]} 9... Nfd7 {[%clk 0:02:39.8]}
10. f4 {[%clk 0:03:00]} 10... Nc6 {[%clk 0:02:30.6]} 11. Be3 {[%clk 0:02:58]}
11... Be7 {[%clk 0:02:25.3]} 12. h4 {[%clk 0:02:56.3]} 12... Qc7 {[%clk
0:02:20.8]} 13. O-O-O {[%clk 0:02:55.7]} 13... Nxd4 {[%clk 0:02:19.4]} 14. Bxd4
{[%clk 0:02:54.1]} 14... b5 {[%clk 0:01:44.2]} 15. f5 {[%clk 0:02:48.9]} 15...
Bb7 {[%clk 0:01:40.5]} 16. fxe6 {[%clk 0:02:37.8]} 16... fxe6 {[%clk 0:01:39.7]}
17. Bxg7 {[%clk 0:02:37.7]} 17... O-O-O {[%clk 0:01:26.9]} 18. Bxh8 {[%clk
0:02:32.8]} 18... Rxh8 {[%clk 0:01:26.1]} 19. Bh3 {[%clk 0:02:33.3]} 19... Nc5
{[%clk 0:01:23.4]} 20. a3 {[%clk 0:02:29.8]} 20... Kb8 {[%clk 0:01:21.7]} 21.
Rhf1 {[%clk 0:02:28.8]} 21... Rc8 {[%clk 0:01:15.5]} 22. Kb1 {[%clk 0:02:27.2]}
22... Na4 {[%clk 0:01:06.8]} 23. Nxa4 {[%clk 0:02:24.3]} 23... bxa4 {[%clk
0:01:06.8]} 24. Bxe6 {[%clk 0:02:16.5]} 1-0

[Event "*** Titled Tuesday Blitz"]
[Site "Chess.com"]
[Date "2020.05.19"]
[Round "2"]
[White "lrestevez"]
[Black "SaqoChess_Twitch"]
[Result "0-1"]
[WhiteElo "2034"]
[BlackElo "2378"]
[TimeControl "180+1"]
[EndTime "12:15:19 PDT"]
[Termination "SaqoChess_Twitch won by resignation"]

1. e4 {[%clk 0:03:00.9]} 1... c5 {[%clk 0:02:59.4]} 2. Nf3 {[%clk 0:02:54.1]}
2... d6 {[%clk 0:02:59.8]} 3. d4 {[%clk 0:02:53.5]} 3... cxd4 {[%clk 0:03:00.7]}
4. c3 {[%clk 0:02:53.3]} 4... Nf6 {[%clk 0:03:01.6]} 5. Bd3 {[%clk 0:02:51.6]}
5... e6 {[%clk 0:02:57.3]} 6. cxd4 {[%clk 0:02:50.3]} 6... Be7 {[%clk
0:02:57.7]} 7. Nc3 {[%clk 0:02:50]} 7... O-O {[%clk 0:02:57.7]} 8. O-O {[%clk
0:02:50.4]} 8... Nc6 {[%clk 0:02:57.5]} 9. Qe2 {[%clk 0:02:50.5]} 9... b6 {[%clk
0:02:53]} 10. Be3 {[%clk 0:02:50.6]} 10... Bb7 {[%clk 0:02:52.4]} 11. Rac1
{[%clk 0:02:50.4]} 11... Nb4 {[%clk 0:02:34.8]} 12. Bb1 {[%clk 0:02:48.3]} 12...
d5 {[%clk 0:02:35.2]} 13. e5 {[%clk 0:02:46.5]} 13... Ne4 {[%clk 0:02:33.8]} 14.
Nxe4 {[%clk 0:02:43.3]} 14... dxe4 {[%clk 0:02:33.6]} 15. Nd2 {[%clk 0:02:43.4]}
15... Nd3 {[%clk 0:02:16.3]} 16. Bxd3 {[%clk 0:02:18.2]} 16... exd3 {[%clk
0:02:17.2]} 17. Qxd3 {[%clk 0:02:17.9]} 17... Qd5 {[%clk 0:02:17.6]} 18. Nf3
{[%clk 0:02:12.8]} 18... Qxa2 {[%clk 0:02:17]} 19. Rc7 {[%clk 0:02:08.9]} 19...
Ba6 {[%clk 0:02:16.6]} 20. Qb1 {[%clk 0:02:04.9]} 20... Qxb1 {[%clk 0:02:16]}
21. Rxb1 {[%clk 0:02:05.6]} 21... Bd8 {[%clk 0:02:11.2]} 22. Rc6 {[%clk
0:02:03.1]} 22... Bb7 {[%clk 0:02:10.1]} 23. Rc3 {[%clk 0:02:01.6]} 23... Rc8
{[%clk 0:02:09.6]} 24. Rbc1 {[%clk 0:02:01.7]} 24... Rxc3 {[%clk 0:02:08.9]} 25.
Rxc3 {[%clk 0:02:02.6]} 25... Bd5 {[%clk 0:02:05.6]} 26. Nd2 {[%clk 0:02:02.1]}
26... b5 {[%clk 0:02:04.8]} 27. Rc8 {[%clk 0:02:01.8]} 27... Bb6 {[%clk
0:02:04.2]} 28. Rxf8+ {[%clk 0:01:58.7]} 28... Kxf8 {[%clk 0:02:05.1]} 29. f3
{[%clk 0:01:59.1]} 29... a5 {[%clk 0:02:04.9]} 30. Kf2 {[%clk 0:01:59.3]} 30...
a4 {[%clk 0:02:05.3]} 31. Nb1 {[%clk 0:01:57]} 31... b4 {[%clk 0:02:04.9]} 32.
Bd2 {[%clk 0:01:55.9]} 32... Bxd4+ {[%clk 0:02:04.1]} 33. Be3 {[%clk 0:01:52]}
33... Bxb2 {[%clk 0:02:03.2]} 34. Bc5+ {[%clk 0:01:51]} 34... Ke8 {[%clk
0:02:03.8]} 35. Bxb4 {[%clk 0:01:51.2]} 35... Bxe5 {[%clk 0:02:04.1]} 36. Nc3
{[%clk 0:01:46.7]} 36... a3 {[%clk 0:01:58.7]} 37. Nxd5 {[%clk 0:01:44]} 37...
a2 {[%clk 0:01:58.4]} 38. Nc7+ {[%clk 0:01:35.4]} 38... Kd7 {[%clk 0:01:57.8]}
0-1

[Event "*** Titled Tuesday Blitz"]
[Site "Chess.com"]
[Date "2020.05.19"]
[Round "2"]
[White "MYMChessAcademy"]
[Black "LiamVrolijk"]
[Result "0-1"]
[WhiteElo "2340"]
[BlackElo "2813"]
[TimeControl "180+1"]
[EndTime "12:15:20 PDT"]
[Termination "LiamVrolijk won by resignation"]

1. e4 {[%clk 0:03:00.9]} 1... Nf6 {[%clk 0:02:58.5]} 2. e5 {[%clk 0:03:00.9]}
2... Nd5 {[%clk 0:02:59.1]} 3. d4 {[%clk 0:03:01.7]} 3... d6 {[%clk 0:02:59.4]}
4. Nf3 {[%clk 0:03:02.3]} 4... g6 {[%clk 0:02:59.6]} 5. c4 {[%clk 0:03:02.1]}
5... Nb6 {[%clk 0:02:59.4]} 6. exd6 {[%clk 0:03:03]} 6... cxd6 {[%clk
0:02:59.1]} 7. h3 {[%clk 0:03:03.5]} 7... Bg7 {[%clk 0:02:59.3]} 8. Be3 {[%clk
0:03:03.5]} 8... O-O {[%clk 0:02:59.3]} 9. Nc3 {[%clk 0:03:04]} 9... Bf5 {[%clk
0:02:57.2]} 10. d5 {[%clk 0:02:55.9]} 10... Na6 {[%clk 0:02:53]} 11. Bd4 {[%clk
0:02:55.5]} 11... e5 {[%clk 0:02:50.1]} 12. dxe6 {[%clk 0:02:54.6]} 12... Bxe6
{[%clk 0:02:50]} 13. Bxg7 {[%clk 0:02:53.3]} 13... Kxg7 {[%clk 0:02:50.9]} 14.
Qd4+ {[%clk 0:02:48.8]} 14... Kg8 {[%clk 0:02:49.9]} 15. Be2 {[%clk 0:02:46.4]}
15... Rc8 {[%clk 0:02:47.1]} 16. Rd1 {[%clk 0:02:32.2]} 16... Bxc4 {[%clk
0:02:40.3]} 17. Qxd6 {[%clk 0:02:20.3]} 17... Qxd6 {[%clk 0:02:24.6]} 18. Rxd6
{[%clk 0:02:21.2]} 18... Bxe2 {[%clk 0:02:25]} 19. Kxe2 {[%clk 0:02:14.2]} 19...
Rfe8+ {[%clk 0:02:25.2]} 20. Kd1 {[%clk 0:02:12]} 20... Nc4 {[%clk 0:02:24.9]}
21. Rd7 {[%clk 0:02:00.9]} 21... Nc5 {[%clk 0:02:21.5]} 22. Rd4 {[%clk
0:01:51.6]} 22... Nxb2+ {[%clk 0:02:20.1]} 23. Kc2 {[%clk 0:01:38.1]} 23... Nca4
{[%clk 0:02:17.8]} 24. Kd2 {[%clk 0:01:07.4]} 24... Rxc3 {[%clk 0:02:13.6]} 25.
Rb1 {[%clk 0:01:04.2]} 25... Nc4+ {[%clk 0:02:10.2]} 0-1

[Event "*** Titled Tuesday Blitz"]
[Site "Chess.com"]
[Date "2020.05.19"]
[Round "2"]
[White "davekoenig"]
[Black "sergeikim"]
[Result "1-0"]
[WhiteElo "2177"]
[BlackElo "2398"]
[TimeControl "180+1"]
[EndTime "12:15:28 PDT"]
[Termination "davekoenig won by resignation"]

1. e4 {[%clk 0:03:00.9]} 1... e5 {[%clk 0:02:59.8]} 2. Nf3 {[%clk 0:03:00.5]}
2... Nc6 {[%clk 0:03:00.2]} 3. d4 {[%clk 0:03:00.8]} 3... exd4 {[%clk
0:02:58.8]} 4. Nxd4 {[%clk 0:03:01]} 4... Bc5 {[%clk 0:02:58.5]} 5. Nxc6 {[%clk
0:03:01.2]} 5... Qf6 {[%clk 0:02:57.7]} 6. Qd2 {[%clk 0:03:01.6]} 6... dxc6
{[%clk 0:02:57.9]} 7. Nc3 {[%clk 0:03:01.8]} 7... Be6 {[%clk 0:02:57.5]} 8. Na4
{[%clk 0:03:01.8]} 8... Be7 {[%clk 0:02:56.5]} 9. Qe3 {[%clk 0:03:00.4]} 9...
Qe5 {[%clk 0:02:54.2]} 10. Bd3 {[%clk 0:02:49.1]} 10... Nf6 {[%clk 0:02:50]} 11.
h3 {[%clk 0:02:36.9]} 11... Qa5+ {[%clk 0:02:40.8]} 12. Nc3 {[%clk 0:02:36.3]}
12... O-O-O {[%clk 0:02:31.7]} 13. Bd2 {[%clk 0:02:34.1]} 13... Bc5 {[%clk
0:02:22.7]} 14. Qg3 {[%clk 0:02:33.1]} 14... Rhg8 {[%clk 0:02:09]} 15. Nd5
{[%clk 0:02:18.5]} 15... cxd5 {[%clk 0:02:04.2]} 16. Bxa5 {[%clk 0:02:16.9]}
16... b6 {[%clk 0:02:04.8]} 17. Bd2 {[%clk 0:02:11.2]} 17... dxe4 {[%clk
0:02:05.7]} 18. Ba6+ {[%clk 0:02:09.8]} 18... Kb8 {[%clk 0:02:04.6]} 19. Bf4
{[%clk 0:01:54.1]} 19... Rd7 {[%clk 0:01:59.5]} 20. Bb5 {[%clk 0:01:47.2]} 20...
Re7 {[%clk 0:01:59.1]} 21. O-O-O {[%clk 0:01:43.1]} 21... Nh5 {[%clk 0:01:55.2]}
22. Qh4 {[%clk 0:01:42.2]} 22... Nxf4 {[%clk 0:01:42.5]} 23. Qxf4 {[%clk
0:01:42.3]} 23... g5 {[%clk 0:01:43.4]} 24. Qxe4 {[%clk 0:01:34.4]} 24... Bxf2
{[%clk 0:01:37.4]} 25. Ba6 {[%clk 0:01:29.3]} 1-0

[Event "*** Titled Tuesday Blitz"]
[Site "Chess.com"]
[Date "2020.05.19"]
[Round "2"]
[White "mfwagnerpeixoto"]
[Black "WhiteCapital80"]
[Result "0-1"]
[WhiteElo "2220"]
[BlackElo "2447"]
[TimeControl "180+1"]
[EndTime "12:15:29 PDT"]
[Termination "WhiteCapital80 won by resignation"]

1. e4 {[%clk 0:03:00.9]} 1... e6 {[%clk 0:03:00.3]} 2. d4 {[%clk 0:02:59.9]}
2... d5 {[%clk 0:03:00.5]} 3. Nd2 {[%clk 0:02:57.3]} 3... Nf6 {[%clk 0:03:00.4]}
4. Bd3 {[%clk 0:02:54.7]} 4... c5 {[%clk 0:02:59.9]} 5. c3 {[%clk 0:02:54]} 5...
Nc6 {[%clk 0:02:59.6]} 6. Ngf3 {[%clk 0:02:52.9]} 6... dxe4 {[%clk 0:02:52.4]}
7. Nxe4 {[%clk 0:02:52]} 7... cxd4 {[%clk 0:02:51.3]} 8. Nxf6+ {[%clk 0:02:43]}
8... gxf6 {[%clk 0:02:49.6]} 9. cxd4 {[%clk 0:02:43]} 9... Bb4+ {[%clk
0:02:44.2]} 10. Bd2 {[%clk 0:02:39]} 10... Qa5 {[%clk 0:02:42.6]} 11. Bxb4
{[%clk 0:02:29]} 11... Qxb4+ {[%clk 0:02:42.1]} 12. Qd2 {[%clk 0:02:28.3]} 12...
Bd7 {[%clk 0:02:38.7]} 13. a3 {[%clk 0:02:14.9]} 13... Qxd2+ {[%clk 0:02:37]}
14. Kxd2 {[%clk 0:02:15.8]} 14... Ne7 {[%clk 0:02:31.4]} 15. Be4 {[%clk
0:02:11]} 15... O-O-O {[%clk 0:02:25.4]} 16. Rhc1+ {[%clk 0:02:07.3]} 16... Kb8
{[%clk 0:02:25.3]} 17. Ke1 {[%clk 0:02:05.3]} 17... f5 {[%clk 0:02:23.9]} 18.
Bd3 {[%clk 0:01:59.6]} 18... Bc6 {[%clk 0:02:20.5]} 19. Ne5 {[%clk 0:01:59.1]}
19... Rhf8 {[%clk 0:02:19.6]} 20. Rc4 {[%clk 0:01:30.2]} 20... Bd5 {[%clk
0:02:15.4]} 21. Rb4 {[%clk 0:01:22]} 21... f6 {[%clk 0:02:12.9]} 22. Nf3 {[%clk
0:01:18.2]} 22... Nc6 {[%clk 0:02:10.3]} 23. Ra4 {[%clk 0:01:10.6]} 23... Bb3
{[%clk 0:02:02.6]} 24. Rb4 {[%clk 0:01:10.3]} 24... Nxb4 {[%clk 0:02:01.9]} 25.
axb4 {[%clk 0:01:11.2]} 25... Bd5 {[%clk 0:02:01.5]} 0-1

[Event "*** Titled Tuesday Blitz"]
[Site "Chess.com"]
[Date "2020.05.19"]
[Round "2"]
[White "IriBu"]
[Black "Onischuk_V"]
[Result "0-1"]
[WhiteElo "2516"]
[BlackElo "2820"]
[TimeControl "180+1"]
[EndTime "12:15:33 PDT"]
[Termination "Onischuk_V won by resignation"]

1. e4 {[%clk 0:03:00.9]} 1... d6 {[%clk 0:03:00]} 2. d4 {[%clk 0:03:00.4]} 2...
Nf6 {[%clk 0:03:00.7]} 3. Nc3 {[%clk 0:03:00.2]} 3... g6 {[%clk 0:03:01.4]} 4.
Nf3 {[%clk 0:03:00.6]} 4... Bg7 {[%clk 0:03:02]} 5. h3 {[%clk 0:03:01.1]} 5...
O-O {[%clk 0:03:02.4]} 6. Be2 {[%clk 0:03:01.6]} 6... c6 {[%clk 0:03:01.6]} 7.
a4 {[%clk 0:03:01.9]} 7... Nbd7 {[%clk 0:03:00.5]} 8. O-O {[%clk 0:03:02]} 8...
e5 {[%clk 0:03:00.6]} 9. dxe5 {[%clk 0:03:01.2]} 9... dxe5 {[%clk 0:03:00.5]}
10. b3 {[%clk 0:03:01.3]} 10... Re8 {[%clk 0:03:00.2]} 11. Ba3 {[%clk
0:03:00.8]} 11... Bf8 {[%clk 0:02:57]} 12. Qc1 {[%clk 0:03:00.5]} 12... Bxa3
{[%clk 0:02:47.4]} 13. Qxa3 {[%clk 0:02:58.2]} 13... Qa5 {[%clk 0:02:47.4]} 14.
b4 {[%clk 0:02:56.1]} 14... Qc7 {[%clk 0:02:47.4]} 15. a5 {[%clk 0:02:54.1]}
15... Nf8 {[%clk 0:02:46.3]} 16. Bc4 {[%clk 0:02:51.5]} 16... Be6 {[%clk
0:02:46]} 17. Qb3 {[%clk 0:02:51.1]} 17... Bxc4 {[%clk 0:02:45.2]} 18. Qxc4
{[%clk 0:02:52]} 18... Ne6 {[%clk 0:02:45.3]} 19. Rad1 {[%clk 0:02:42.3]} 19...
Rad8 {[%clk 0:02:39.1]} 20. Rxd8 {[%clk 0:02:40.3]} 20... Rxd8 {[%clk 0:02:39]}
21. Rd1 {[%clk 0:02:40.9]} 21... Rxd1+ {[%clk 0:02:37.9]} 22. Nxd1 {[%clk
0:02:41.8]} 22... Qd6 {[%clk 0:02:34.2]} 23. Ne3 {[%clk 0:02:39.6]} 23... Nd4
{[%clk 0:02:29.3]} 24. Ng4 {[%clk 0:02:16.4]} 24... Nxg4 {[%clk 0:01:59.6]} 25.
hxg4 {[%clk 0:02:13.7]} 25... Nxf3+ {[%clk 0:01:59.6]} 26. gxf3 {[%clk
0:02:13.7]} 26... Kg7 {[%clk 0:01:57.3]} 27. Kg2 {[%clk 0:02:11.7]} 27... h6
{[%clk 0:01:53.2]} 28. c3 {[%clk 0:02:07.2]} 28... Kf6 {[%clk 0:01:51.6]} 29.
Kg3 {[%clk 0:01:48.8]} 29... h5 {[%clk 0:01:47.1]} 30. Qe2 {[%clk 0:01:48]}
30... Kg7 {[%clk 0:01:39.8]} 31. Qe3 {[%clk 0:01:41.7]} 31... Qd1 {[%clk
0:01:32.2]} 32. Qxa7 {[%clk 0:01:40.9]} 32... Qg1+ {[%clk 0:01:32]} 33. Kh3
{[%clk 0:01:41]} 33... Qh1+ {[%clk 0:01:31.8]} 0-1

[Event "*** Titled Tuesday Blitz"]
[Site "Chess.com"]
[Date "2020.05.19"]
[Round "2"]
[White "BAS8892"]
[Black "Barmen_EV"]
[Result "0-1"]
[WhiteElo "2655"]
[BlackElo "2487"]
[TimeControl "180+1"]
[EndTime "12:15:35 PDT"]
[Termination "Barmen_EV won by resignation"]

1. d4 {[%clk 0:03:00.9]} 1... d5 {[%clk 0:02:57.7]} 2. c4 {[%clk 0:03:00.7]}
2... e6 {[%clk 0:02:57.6]} 3. Nc3 {[%clk 0:02:59.7]} 3... Bb4 {[%clk 0:02:57.8]}
4. Nf3 {[%clk 0:02:58.5]} 4... Nf6 {[%clk 0:02:58.1]} 5. cxd5 {[%clk 0:02:54.1]}
5... exd5 {[%clk 0:02:59]} 6. Bg5 {[%clk 0:02:53.7]} 6... h6 {[%clk 0:02:58.4]}
7. Bh4 {[%clk 0:02:52.1]} 7... g5 {[%clk 0:02:56.9]} 8. Bg3 {[%clk 0:02:51.7]}
8... Ne4 {[%clk 0:02:57.4]} 9. Qb3 {[%clk 0:02:48.6]} 9... Nc6 {[%clk
0:02:55.9]} 10. e3 {[%clk 0:02:48.1]} 10... h5 {[%clk 0:02:54.1]} 11. Bb5 {[%clk
0:01:30.2]} 11... Bxc3+ {[%clk 0:02:52.2]} 12. bxc3 {[%clk 0:01:30.1]} 12... h4
{[%clk 0:02:53.1]} 13. Ne5 {[%clk 0:01:30.1]} 13... hxg3 {[%clk 0:02:41]} 14.
Nxc6 {[%clk 0:01:10.9]} 14... gxf2+ {[%clk 0:02:40.5]} 15. Kf1 {[%clk 0:00:54]}
15... bxc6 {[%clk 0:01:57.7]} 16. Bxc6+ {[%clk 0:00:53.6]} 16... Bd7 {[%clk
0:01:57.7]} 17. Bxd5 {[%clk 0:00:38.9]} 17... Nd2+ {[%clk 0:01:55.6]} 0-1

[Event "*** Titled Tuesday Blitz"]
[Site "Chess.com"]
[Date "2020.05.19"]
[Round "2"]
[White "MikeKorovin"]
[Black "MaxLeto"]
[Result "1-0"]
[WhiteElo "2630"]
[BlackElo "2326"]
[TimeControl "180+1"]
[EndTime "12:15:37 PDT"]
[Termination "MikeKorovin won by resignation"]

1. Nf3 {[%clk 0:03:00.9]} 1... d5 {[%clk 0:02:35.2]} 2. g3 {[%clk 0:02:59.4]}
2... c6 {[%clk 0:02:34.4]} 3. Bg2 {[%clk 0:02:59.7]} 3... Nf6 {[%clk 0:02:35.3]}
4. O-O {[%clk 0:03:00.1]} 4... Bf5 {[%clk 0:02:35.8]} 5. b3 {[%clk 0:03:00.2]}
5... e6 {[%clk 0:02:35.6]} 6. Bb2 {[%clk 0:02:59.8]} 6... Be7 {[%clk 0:02:35.3]}
7. d3 {[%clk 0:03:00.1]} 7... h6 {[%clk 0:02:35.6]} 8. Nbd2 {[%clk 0:02:59.5]}
8... O-O {[%clk 0:02:35.7]} 9. Qe1 {[%clk 0:02:57.8]} 9... Bh7 {[%clk
0:02:35.6]} 10. e4 {[%clk 0:02:57.8]} 10... b5 {[%clk 0:02:36]} 11. a4 {[%clk
0:02:57.1]} 11... Nbd7 {[%clk 0:02:19.2]} 12. exd5 {[%clk 0:02:51.4]} 12... Nxd5
{[%clk 0:02:09.5]} 13. Nd4 {[%clk 0:02:35.1]} 13... Qb6 {[%clk 0:01:04]} 14.
axb5 {[%clk 0:02:14.8]} 14... cxb5 {[%clk 0:00:59]} 15. Bxd5 {[%clk 0:02:11.4]}
15... Rad8 {[%clk 0:00:27.1]} 16. Nxe6 {[%clk 0:01:59.1]} 1-0

[Event "*** Titled Tuesday Blitz"]
[Site "Chess.com"]
[Date "2020.05.19"]
[Round "2"]
[White "Firouzja2003"]
[Black "Shubinkirill2003"]
[Result "1-0"]
[WhiteElo "3171"]
[BlackElo "2577"]
[TimeControl "180+1"]
[EndTime "12:15:40 PDT"]
[Termination "Firouzja2003 won by resignation"]

1. e4 {[%clk 0:03:00.9]} 1... e6 {[%clk 0:03:00.2]} 2. d3 {[%clk 0:02:57.9]}
2... c5 {[%clk 0:02:59.6]} 3. Nd2 {[%clk 0:02:58.8]} 3... Nc6 {[%clk 0:02:59.3]}
4. Ngf3 {[%clk 0:02:59.7]} 4... g6 {[%clk 0:02:59.2]} 5. g3 {[%clk 0:03:00.6]}
5... Bg7 {[%clk 0:02:59.2]} 6. h4 {[%clk 0:03:01.1]} 6... h5 {[%clk 0:02:56.3]}
7. Bg2 {[%clk 0:03:01.5]} 7... Nge7 {[%clk 0:02:56.2]} 8. O-O {[%clk 0:03:01.8]}
8... O-O {[%clk 0:02:56.2]} 9. Re1 {[%clk 0:03:02.7]} 9... e5 {[%clk 0:02:54.1]}
10. Nc4 {[%clk 0:03:02.7]} 10... d6 {[%clk 0:02:53]} 11. a4 {[%clk 0:03:03.2]}
11... f6 {[%clk 0:02:39.8]} 12. c3 {[%clk 0:03:03.3]} 12... Be6 {[%clk
0:02:39.1]} 13. Nfd2 {[%clk 0:02:58.3]} 13... Qd7 {[%clk 0:02:37.3]} 14. a5
{[%clk 0:02:55.3]} 14... Bh3 {[%clk 0:02:26.3]} 15. Qb3 {[%clk 0:02:50]} 15...
Be6 {[%clk 0:02:13.6]} 16. Nf1 {[%clk 0:02:46.4]} 16... Kh7 {[%clk 0:02:07.9]}
17. Nfe3 {[%clk 0:02:46]} 17... f5 {[%clk 0:02:08]} 18. exf5 {[%clk 0:02:32.9]}
18... Nxf5 {[%clk 0:02:05]} 19. Nd5 {[%clk 0:02:27.8]} 19... Rab8 {[%clk
0:01:47.1]} 20. Nd2 {[%clk 0:02:24]} 20... Nfe7 {[%clk 0:01:33.8]} 21. Ne4
{[%clk 0:02:19.5]} 21... Bxd5 {[%clk 0:01:29.2]} 22. Ng5+ {[%clk 0:02:19.1]}
22... Kh8 {[%clk 0:01:28.8]} 23. Bxd5 {[%clk 0:02:19.6]} 23... Rf6 {[%clk
0:01:19.7]} 24. Be6 {[%clk 0:02:09.2]} 24... Qc7 {[%clk 0:01:14]} 25. Nf7+
{[%clk 0:02:08.9]} 25... Kh7 {[%clk 0:01:13.7]} 26. Bg5 {[%clk 0:02:09.6]} 26...
c4 {[%clk 0:01:02.4]} 27. Bxc4 {[%clk 0:02:02.4]} 27... d5 {[%clk 0:01:00.5]}
28. Bxf6 {[%clk 0:02:01.6]} 28... dxc4 {[%clk 0:01:00.2]} 29. Ng5+ {[%clk
0:02:01.8]} 1-0